bitfinex/quotes_BTCUSD_20250412
["timestamp","ask_amount","ask_price","bid_price","bid_amount"]
[1744453910214,0.00690383,83395.0,83393.0,0.012991]
[1744453911054,0.011991,83394.0,83391.0,0.0457]
[1744453911237,0.011991,83390.0,83386.0,0.05769203]
[1744453911474,0.011991,83390.0,83387.0,0.12084154]
[1744453911863,0.00690938,83389.0,83387.0,0.12084154]
[1744453912180,0.00690938,83389.0,83387.0,0.36068554]
[1744453912560,0.00690938,83389.0,83387.0,0.37267754]
[1744453913463,0.01358602,83391.0,83387.0,0.37267754]
[1744453913703,0.00690938,83388.0,83387.0,0.37267754]
[1744453913907,0.011991,83390.0,83387.0,0.37267754]
[1744453914094,0.00690938,83388.0,83387.0,0.37567754]
[1744453914273,0.01358602,83391.0,83387.0,0.37267754]
[1744453914474,0.00690938,83388.0,83387.0,0.37267754]
[1744453914699,0.011991,83390.0,83387.0,0.12384154]
[1744453914700,0.25183,83390.0,83387.0,0.12384154]
[1744453914845,0.00690938,83388.0,83387.0,0.12384154]
[1744453915043,0.25183,83390.0,83387.0,0.12384154]
[1744453915299,0.00690938,83388.0,83387.0,0.12384154]
[1744453915500,0.25183,83390.0,83387.0,0.12384154]
[1744453915700,0.00690938,83388.0,83387.0,0.12384154]
[1744453915842,0.25183,83390.0,83387.0,0.12384154]
[1744453916044,0.00690938,83388.0,83387.0,0.12384154]
[1744453916245,0.25183,83390.0,83387.0,0.12384154]
[1744453916448,0.00690938,83388.0,83387.0,0.12684154]
[1744453916685,0.25183,83390.0,83387.0,0.12684154]
[1744453916888,0.00690938,83388.0,83387.0,0.12684154]
[1744453917064,0.011991,83390.0,83387.0,0.13883354]
[1744453917269,0.00690938,83388.0,83387.0,0.13283354]
[1744453917469,0.011991,83390.0,83387.0,0.13583354]
[1744453917672,0.00690938,83388.0,83387.0,0.13283354]
[1744453917877,0.011991,83390.0,83387.0,0.13283354]
[1744453918052,0.00690938,83388.0,83387.0,0.13583354]
[1744453918252,0.011991,83390.0,83387.0,0.13283354]
[1744453918453,0.00690938,83388.0,83387.0,0.13283354]
[1744453918652,0.011991,83390.0,83387.0,0.13283354]
[1744453918867,0.00690938,83388.0,83387.0,0.13283354]
[1744453919085,0.011991,83390.0,83387.0,0.13283354]
[1744453919280,0.00690938,83388.0,83387.0,0.13283354]
[1744453919484,0.011991,83390.0,83387.0,0.13283354]
[1744453919686,0.00690938,83388.0,83387.0,0.13283354]
[1744453919960,0.011991,83390.0,83387.0,0.13283354]
[1744453920233,0.011991,83390.0,83387.0,0.13583354]
[1744453920467,0.011991,83390.0,83387.0,0.003]
[1744453920468,0.24675138,83389.0,83387.0,0.003]
[1744453920604,0.2483464,83389.0,83387.0,0.003]
[1744453921370,0.239845,83387.0,83386.0,3e-08]
[1744453921544,0.42144002,83387.0,83386.0,3e-08]
[1744453921785,0.42673454,83387.0,83386.0,3e-08]
[1744453923364,0.42973454,83387.0,83386.0,3e-08]
[1744453923973,0.43173454,83387.0,83386.0,3e-08]
[1744453929322,0.44093743,83387.0,83386.0,3e-08]
[1744453931271,0.43173454,83387.0,83386.0,3e-08]
[1744453932403,0.25173454,83387.0,83386.0,3e-08]
[1744453936612,0.25173454,83387.0,83386.0,0.36068957]
[1744453936613,0.01188954,83387.0,83386.0,0.36068957]
[1744453937488,0.00888954,83387.0,83386.0,0.36068957]
[1744453937692,0.01088954,83387.0,83386.0,0.36068957]
[1744453938227,0.00888954,83387.0,83386.0,0.36068957]
[1744453939897,0.00888954,83387.0,83386.0,0.36168957]
[1744453952835,0.00888954,83387.0,83386.0,0.12184157]
[1744453954350,0.002,83387.0,83386.0,0.12184157]
[1744453954708,0.00806047,83387.0,83386.0,0.12184157]
[1744453963057,0.002,83387.0,83386.0,0.12184157]
[1744453963757,0.00806047,83387.0,83386.0,0.12184157]
[1744453963978,0.002,83387.0,83386.0,0.12184157]
[1744453964519,0.00772562,83387.0,83386.0,0.12184157]
[1744453984835,0.002,83387.0,83386.0,0.12184157]
[1744453985492,0.002,83387.0,83386.0,0.16874157]
[1744453990090,0.002,83387.0,83386.0,0.12184157]
[1744453994566,0.002,83387.0,83386.0,0.12423992]
[1744454001449,0.002,83387.0,83386.0,0.22073992]
[1744454002063,0.002,83387.0,83386.0,0.21973992]
[1744454002326,0.011989,83409.0,83405.0,0.011989]
[1744454002567,0.16212929,83409.0,83405.0,0.011989]
[1744454002776,0.00463918,83408.0,83405.0,0.251781]
[1744454003110,0.00014029,83409.0,83406.0,0.011989]
[1744454003316,0.00463918,83408.0,83406.0,0.011989]
[1744454004629,0.00663918,83408.0,83406.0,0.251777]
[1744454004952,0.002,83408.0,83406.0,0.251777]
[1744454005276,0.002,83408.0,83407.0,0.12084154]
[1744454006041,0.005,83408.0,83407.0,0.12084154]
[1744454006260,0.005,83408.0,83407.0,0.12323926]
[1744454006475,0.002,83408.0,83407.0,0.12323926]
[1744454006795,0.00014029,83409.0,83408.0,0.239785]
[1744454006994,0.00014029,83409.0,83408.0,0.36062654]
[1744454008271,0.00314029,83409.0,83408.0,0.36062654]
[1744454008703,0.00514029,83409.0,83408.0,0.36062654]
[1744454018311,0.00514029,83409.0,83408.0,0.36062654]
[1744454023770,0.00514029,83409.0,83385.0,0.0004219]
[1744454023771,0.26174029,83409.0,83385.0,0.0004219]
[1744454023916,0.26174029,83409.0,83387.0,0.12084154]
[1744454023917,0.011991,83390.0,83387.0,0.12084154]
[1744454024119,0.239842,83389.0,83387.0,0.12084154]
[1744454024366,0.00481942,83388.0,83387.0,0.12084154]
[1744454026755,0.00481942,83388.0,83387.0,0.12284154]
[1744454027212,0.00581942,83388.0,83387.0,0.12084154]
[1744454027623,0.00581942,83388.0,83387.0,0.12384154]
[1744454027831,0.00741444,83388.0,83387.0,0.003]
[1744454028128,0.05691444,83388.0,83387.0,0.003]
[1744454036420,0.28631444,83388.0,83387.0,0.003]
[1744454036619,0.28471942,83388.0,83387.0,0.003]
[1744454037627,0.28471942,83388.0,83386.0,3e-08]
[1744454037628,0.287545,83387.0,83386.0,3e-08]
[1744454037800,0.467545,83387.0,83386.0,3e-08]
[1744454038029,0.47208083,83387.0,83386.0,3e-08]
[1744454038738,0.47208083,83387.0,83386.0,0.00100003]
[1744454038960,0.47808083,83387.0,83386.0,0.00100003]
[1744454039752,0.48308083,83387.0,83386.0,0.00100003]
[1744454050175,0.99342237,83387.0,83386.0,3e-08]
[1744454051154,0.3869,83386.0,83385.0,0.0004219]
[1744454051324,0.66218207,83386.0,83385.0,0.0004219]
[1744454052340,0.66218207,83386.0,83385.0,0.0014219]
[1744454052541,0.67118207,83386.0,83385.0,0.0014219]
[1744454053889,1.08998207,83386.0,83385.0,0.0014219]
[1744454055708,1.21771055,83386.0,83385.0,0.0014219]
[1744454058217,1.09698207,83386.0,83385.0,0.0014219]
[1744454064091,1.23346207,83386.0,83385.0,0.0014219]
[1744454077154,1.18656207,83386.0,83385.0,0.0014219]
[1744454077386,1.05008207,83386.0,83385.0,0.0014219]
[1744454077543,1.18656207,83386.0,83385.0,0.0014219]
[1744454088680,0.239851,83385.0,83383.0,9e-07]
[1744454088850,0.54123656,83384.0,83383.0,9e-07]
[1744454089051,0.71399107,83384.0,83383.0,9e-07]
[1744454090044,0.72199107,83384.0,83383.0,0.0010009]
[1744454091016,0.72799107,83384.0,83383.0,0.0010009]
[1744454094263,0.75999501,83384.0,83383.0,0.0010009]
[1744454094986,0.72799107,83384.0,83383.0,0.0010009]
[1744454095789,0.72799107,83384.0,83383.0,9e-07]
[1744454100716,1.06799107,83384.0,83383.0,9e-07]
[1744454100921,1.08253192,83384.0,83383.0,9e-07]
[1744454102504,1.21897192,83384.0,83383.0,9e-07]
[1744454104365,1.3397004,83384.0,83383.0,9e-07]
[1744454108294,1.21897192,83384.0,83383.0,9e-07]
[1744454112793,1.26537192,83384.0,83383.0,9e-07]
[1744454113498,1.25937192,83384.0,83383.0,9e-07]
[1744454113990,1.26833192,83384.0,83383.0,9e-07]
[1744454114199,1.22193192,83384.0,83383.0,9e-07]
[1744454114810,0.011995,83368.0,83365.0,0.0465]
[1744454115003,0.00159502,83367.0,83365.0,0.0465]
[1744454115159,0.1857219,83367.0,83365.0,0.0465]
[1744454115360,0.42424927,83367.0,83365.0,0.0465]
[1744454115567,0.42265425,83367.0,83365.0,0.0465]
[1744454115809,0.00159502,83366.0,83365.0,0.0465]
[1744454116018,0.17335731,83366.0,83365.0,0.04696702]
[1744454116653,0.17335731,83366.0,83365.0,0.00046702]
[1744454116893,0.17535731,83366.0,83365.0,0.00046702]
[1744454117113,0.29619885,83366.0,83365.0,0.00046702]
[1744454117260,0.29460383,83366.0,83365.0,0.00046702]
[1744454118173,0.29260383,83366.0,83365.0,0.00046702]
[1744454118420,0.71640383,83366.0,83365.0,0.00046702]
[1744454118620,0.72140383,83366.0,83365.0,0.00046702]
[1744454118746,0.71640383,83366.0,83365.0,0.00046702]
[1744454118948,0.72842902,83366.0,83365.0,0.00046702]
[1744454119148,0.73342902,83366.0,83365.0,0.00046702]
[1744454119383,0.82372813,83366.0,83365.0,0.00046702]
[1744454119946,0.73342902,83366.0,83365.0,0.00046702]
[1744454121287,0.61258748,83366.0,83365.0,0.00046702]
[1744454125282,0.73342902,83366.0,83365.0,0.00046702]
[1744454134353,0.86986902,83366.0,83365.0,0.00046702]
[1744454142358,0.86085545,83366.0,83365.0,0.00046702]
[1744454143914,0.90585545,83366.0,83365.0,0.00046702]
[1744454145241,0.86085545,83366.0,83365.0,0.00046702]
[1744454146140,0.9948257,83366.0,83365.0,2e-08]
[1744454146577,0.39954085,83361.0,83360.0,1.2e-07]
[1744454146798,0.70038239,83361.0,83360.0,1.2e-07]
[1744454147063,0.70304537,83361.0,83360.0,1.2e-07]
[1744454148021,0.70804537,83361.0,83360.0,1.2e-07]
[1744454148266,0.69350452,83361.0,83360.0,1.2e-07]
[1744454148473,0.78490452,83361.0,83360.0,1.2e-07]
[1744454148619,0.78990452,83361.0,83360.0,1.2e-07]
[1744454149004,0.65350452,83361.0,83360.0,1.2e-07]
[1744454149229,0.78990452,83361.0,83360.0,1.2e-07]
[1744454150640,1.20870452,83361.0,83360.0,1.2e-07]
[1744454152577,1.22324537,83361.0,83360.0,1.2e-07]
[1744454152960,0.239946,83352.0,83351.0,9.1e-07]
[1744454153156,0.51238256,83352.0,83351.0,9.1e-07]
[1744454153441,0.51344576,83352.0,83351.0,9.1e-07]
[1744454154328,0.52244576,83352.0,83351.0,9.1e-07]
[1744454155031,0.51844576,83352.0,83351.0,9.1e-07]
[1744454155252,0.52544576,83352.0,83351.0,9.1e-07]
[1744454155452,0.52044576,83352.0,83351.0,9.1e-07]
[1744454155630,0.52744576,83352.0,83351.0,9.1e-07]
[1744454156516,0.94624576,83352.0,83351.0,9.1e-07]
[1744454159350,1.06697424,83352.0,83351.0,9.1e-07]
[1744454159568,0.94624576,83352.0,83351.0,9.1e-07]
[1744454159973,0.93924576,83352.0,83351.0,9.1e-07]
[1744454160308,0.94624576,83352.0,83351.0,9.1e-07]
[1744454161090,0.93924576,83352.0,83351.0,9.1e-07]
[1744454161415,0.96078661,83352.0,83351.0,9.1e-07]
[1744454161611,1.08151509,83352.0,83351.0,9.1e-07]
[1744454162013,1.42151509,83352.0,83351.0,9.1e-07]
[1744454162201,1.44379708,83352.0,83351.0,9.1e-07]
[1744454162622,1.3090686,83352.0,83351.0,9.1e-07]
[1744454162780,1.3170686,83352.0,83351.0,9.1e-07]
[1744454162984,1.3260686,83352.0,83351.0,9.1e-07]
[1744454163521,0.239977,83341.0,83340.0,9.1e-07]
[1744454163724,1.10989555,83341.0,83340.0,9.1e-07]
[1744454163928,1.11087278,83341.0,83340.0,9.1e-07]
[1744454165101,1.11787278,83341.0,83340.0,9.1e-07]
[1744454166267,1.12387278,83341.0,83340.0,9.1e-07]
[1744454166523,1.15591264,83341.0,83340.0,9.1e-07]
[1744454166681,1.47363065,83341.0,83340.0,9.1e-07]
[1744454166880,1.44159079,83341.0,83340.0,9.1e-07]
[1744454167398,1.45040367,83341.0,83340.0,9.1e-07]
[1744454168209,1.45044367,83341.0,83340.0,9.1e-07]
[1744454169289,1.31400367,83341.0,83340.0,9.1e-07]
[1744454169491,1.45044367,83341.0,83340.0,9.1e-07]
[1744454171138,1.11044367,83341.0,83340.0,9.1e-07]
[1744454173127,1.13273973,83341.0,83340.0,9.1e-07]
[1744454173314,1.23968058,83341.0,83340.0,9.1e-07]
[1744454174460,1.57968058,83341.0,83340.0,9.1e-07]
[1744454174580,1.57368058,83341.0,83340.0,9.1e-07]
[1744454174785,1.68740906,83341.0,83340.0,9.1e-07]
[1744454175128,1.70140906,83341.0,83340.0,9.1e-07]
[1744454175332,0.25454385,83332.0,83331.0,9.1e-07]
[1744454175512,0.53791988,83332.0,83331.0,9.1e-07]
[1744454175729,0.56021594,83332.0,83331.0,9.1e-07]
[1744454175909,0.012002,83317.0,83313.0,0.04292291]
[1744454176137,0.00159502,83316.0,83313.0,0.04292291]
[1744454176339,0.08253449,83316.0,83313.0,0.05492491]
[1744454176509,0.08253449,83316.0,83313.0,0.29498091]
[1744454176711,0.08300151,83316.0,83315.0,0.240052]
[1744454177832,0.08400151,83316.0,83315.0,0.240052]
[1744454178064,0.08146702,83316.0,83315.0,0.240052]
[1744454178265,0.08598976,83316.0,83315.0,0.240052]
[1744454179643,0.08598976,83316.0,83314.0,0.0491]
[1744454179992,0.08758478,83316.0,83314.0,0.0491]
[1744454180377,0.08558478,83316.0,83314.0,0.0491]
[1744454180828,0.08758478,83316.0,83314.0,0.0491]
[1744454181019,0.08658478,83316.0,83314.0,0.0491]
[1744454181629,0.08758478,83316.0,83314.0,0.0491]
[1744454182387,0.00159502,83315.0,83314.0,0.0491]
[1744454182736,0.08159502,83315.0,83314.0,0.0491]
[1744454182946,0.08411776,83315.0,83314.0,0.0491]
[1744454183588,0.08611776,83315.0,83314.0,0.0491]
[1744454184239,0.08711776,83315.0,83314.0,0.0491]
[1744454185993,0.00552274,83315.0,83314.0,0.0491]
[1744454186142,0.00552274,83315.0,83314.0,0.10030031]
[1744454186310,0.003,83315.0,83314.0,0.10030031]
[1744454186717,0.003,83315.0,83314.0,0.22114184]
[1744454186934,0.003,83315.0,83314.0,0.56114184]
[1744454187171,0.003,83315.0,83314.0,0.55874154]
[1744454187539,0.001,83315.0,83314.0,0.55874154]
[1744454187738,0.00046702,83316.0,83315.0,0.580052]
[1744454187982,0.00046702,83316.0,83315.0,0.79879354]
[1744454190139,0.00046702,83316.0,83315.0,0.80079354]
[1744454190140,0.00146702,83316.0,83315.0,0.80079354]
[1744454191164,0.4188,83339.0,83338.0,0.239986]
[1744454191368,0.1372446,83350.0,83346.0,0.011998]
[1744454191369,0.1492416,83350.0,83346.0,0.011998]
[1744454191569,0.33083662,83350.0,83346.0,0.011998]
[1744454191693,0.3292416,83350.0,83346.0,0.011998]
[1744454191890,0.3292416,83350.0,83345.0,0.239966]
[1744454191891,0.011997,83349.0,83345.0,0.239966]
[1744454192095,0.011997,83348.0,83344.0,0.011998]
[1744454192293,0.011997,83348.0,83344.0,0.251965]
[1744454192501,0.00159502,83347.0,83344.0,0.011998]
[1744454192775,0.12,83347.0,83344.0,0.01213824]
[1744454193135,0.131998,83347.0,83344.0,0.01213824]
[1744454193754,0.131998,83347.0,83346.0,0.001]
[1744454193960,0.38055602,83347.0,83344.0,0.00014024]
[1744454194165,0.239966,83346.0,83344.0,0.00014024]
[1744454194361,0.00159502,83345.0,83344.0,0.00114024]
[1744454194665,0.17159502,83345.0,83344.0,0.00014024]
[1744454195458,0.17394174,83345.0,83344.0,0.00014024]
[1744454196466,0.17894174,83345.0,83344.0,0.00014024]
[1744454196638,0.18494174,83345.0,83344.0,0.00114024]
[1744454220336,0.20735469,83345.0,83344.0,0.00114024]
[1744454221013,0.64255469,83345.0,83344.0,0.00114024]
[1744454221220,0.64095967,83345.0,83344.0,0.00114024]
[1744454222386,0.75392911,83345.0,83344.0,2.4e-07]
[1744454223994,1.17272911,83345.0,83344.0,2.4e-07]
[1744454224296,1.20634623,83345.0,83344.0,2.4e-07]
[1744454224642,1.17272911,83345.0,83344.0,2.4e-07]
[1744454224857,1.17372911,83345.0,83344.0,2.4e-07]
[1744454225067,1.27365209,83345.0,83344.0,2.4e-07]
[1744454225281,1.30722206,83345.0,83344.0,2.4e-07]
[1744454225698,1.329575,83345.0,83344.0,2.4e-07]
[1744454226415,1.43758206,83345.0,83344.0,2.4e-07]
[1744454226623,0.012002,83314.0,83309.0,0.25207]
[1744454226978,0.00228496,83313.0,83311.0,0.240064]
[1744454227196,0.07228496,83313.0,83312.0,0.0493]
[1744454227956,0.07242502,83313.0,83312.0,0.0493]
[1744454228169,0.07342502,83313.0,83312.0,0.0493]
[1744454228377,0.07242502,83313.0,83312.0,0.0493]
[1744454228576,0.31248302,83313.0,83312.0,0.0493]
[1744454228778,0.24248302,83313.0,83312.0,0.0493]
[1744454229005,0.00242502,83313.0,83312.0,0.0493]
[1744454229674,0.00342502,83313.0,83312.0,0.0493]
[1744454231741,0.00342502,83313.0,83312.0,0.21864154]
[1744454231949,0.00114006,83313.0,83312.0,0.21864154]
[1744454246368,0.00114006,83313.0,83312.0,0.17014154]
[1744454247383,0.012003,83311.0,83308.0,0.13636]
[1744454247576,0.252069,83311.0,83308.0,0.13636]
[1744454247776,0.252069,83311.0,83308.0,0.148363]
[1744454248218,0.012003,83311.0,83308.0,0.148363]
[1744454249023,0.012003,83311.0,83308.0,0.13636]
[1744454249801,0.253069,83311.0,83308.0,0.13636]
[1744454249980,0.012003,83311.0,83308.0,0.13636]
[1744454250383,0.013003,83311.0,83308.0,0.13636]
[1744454252762,0.013003,83311.0,83308.0,0.148363]
[1744454252962,0.013003,83311.0,83308.0,0.012003]
[1744454253527,0.25207,83310.0,83307.0,0.012003]
[1744454253875,0.012003,83310.0,83307.0,0.13284454]
[1744454255772,0.24007,83309.0,83307.0,0.12084154]
[1744454257096,0.24107,83309.0,83307.0,0.12084154]
[1744454257300,0.001,83309.0,83307.0,0.12084154]
[1744454260889,0.001,83309.0,83306.0,0.0004221]
[1744454260890,0.240075,83307.0,83306.0,0.0004221]
[1744454262869,0.241075,83307.0,83306.0,0.0004221]
[1744454264100,0.001,83307.0,83306.0,0.0004221]
[1744454264271,0.001,83307.0,83306.0,0.12126364]
[1744454271020,0.001,83307.0,83306.0,0.17356416]
[1744454281121,0.001,83307.0,83306.0,0.17116364]
[1744454283285,0.001,83307.0,83306.0,0.17356383]
[1744454283692,0.001,83307.0,83306.0,0.51356383]
[1744454283994,0.001,83307.0,83306.0,0.51116364]
[1744454295359,0.001,83307.0,83306.0,0.64748364]
[1744454300257,0.001,83307.0,83306.0,1.05568364]
[1744454302436,0.001,83307.0,83306.0,1.07022449]
[1744454317986,0.0455,83333.0,83332.0,0.240003]
[1744454318196,0.0487442,83342.0,83341.0,0.239977]
[1744454318330,0.0008442,83342.0,83341.0,0.70081854]
[1744454319173,0.0008442,83342.0,83341.0,0.71293999]
[1744454319174,0.00098457,83342.0,83341.0,0.71293999]
[1744454320459,0.00298457,83342.0,83341.0,0.71493999]
[1744454333727,0.00298457,83342.0,83341.0,0.85113999]
[1744454343088,0.00298457,83342.0,83341.0,0.49901854]
[1744454345137,0.00298457,83342.0,83341.0,0.36281854]
[1744454355637,0.00298457,83342.0,83341.0,0.002]
[1744454355825,0.16298457,83342.0,83341.0,0.002]
[1744454356036,0.18537743,83342.0,83341.0,0.002]
[1744454360338,0.23547245,83342.0,83341.0,0.002]
[1744454382844,0.21307959,83342.0,83341.0,0.002]
[1744454383245,0.21148457,83342.0,83341.0,0.002]
[1744454383463,0.21307959,83342.0,83341.0,0.002]
[1744454383844,0.23546712,83342.0,83341.0,0.002]
[1744454385529,0.21307959,83342.0,83341.0,0.002]
[1744454388609,0.21148457,83342.0,83341.0,0.002]
[1744454391134,0.23388644,83342.0,83341.0,0.002]
[1744454391641,0.21148457,83342.0,83341.0,0.002]
[1744454392847,0.21307959,83342.0,83341.0,0.002]
[1744454393484,0.23548229,83342.0,83341.0,0.002]
[1744454395002,0.18538727,83342.0,83341.0,0.002]
[1744454396780,0.18698229,83342.0,83341.0,0.002]
[1744454400526,0.23668229,83342.0,83341.0,0.002]
[1744454401284,0.23468229,83342.0,83341.0,0.002]
[1744454401484,0.28238229,83342.0,83341.0,0.002]
[1744454401675,0.28478727,83342.0,83341.0,0.002]
[1744454402373,0.240032,83322.0,83321.0,0.4082]
[1744454402577,0.2624347,83322.0,83321.0,0.4082]
[1744454403416,0.240032,83322.0,83321.0,0.4092]
[1744454403619,0.240032,83322.0,83321.0,0.4132]
[1744454405999,0.240032,83322.0,83321.0,0.005]
[1744454407360,0.012001,83324.0,83321.0,0.005]
[1744454407792,0.252011,83330.0,83324.0,0.012001]
[1744454407944,0.012,83328.0,83325.0,0.012001]
[1744454408148,0.022,83328.0,83325.0,0.012001]
[1744454408349,0.01,83328.0,83325.0,0.012001]
[1744454408848,0.022,83328.0,83325.0,0.012001]
[1744454409311,0.022,83328.0,83325.0,0.014001]
[1744454409484,0.262017,83328.0,83325.0,0.002]
[1744454413389,0.240019,83327.0,83325.0,0.002]
[1744454413551,0.250019,83327.0,83325.0,0.002]
[1744454415489,0.250019,83327.0,83323.0,0.012001]
[1744454415490,0.252023,83326.0,83323.0,0.012001]
[1744454415643,0.012001,83325.0,83322.0,0.012001]
[1744454415843,0.022001,83325.0,83322.0,0.012001]
[1744454416712,0.262027,83325.0,83320.0,0.252037]
[1744454416839,0.262027,83325.0,83322.0,0.003]
[1744454417240,0.022001,83325.0,83322.0,0.015001]
[1744454417442,0.262026,83325.0,83322.0,0.015001]
[1744454417880,0.022001,83325.0,83322.0,0.015001]
[1744454418326,0.262026,83325.0,83322.0,0.016001]
[1744454419352,0.01,83325.0,83323.0,0.240029]
[1744454419513,0.01,83325.0,83323.0,0.012001]
[1744454420317,0.022001,83325.0,83322.0,0.016001]
[1744454420497,0.262026,83325.0,83322.0,0.016001]
[1744454420700,0.262026,83325.0,83322.0,0.013001]
[1744454420955,0.262026,83325.0,83322.0,0.012001]
[1744454422054,0.262026,83325.0,83323.0,0.003]
[1744454422415,0.262026,83325.0,83322.0,0.013001]
[1744454422652,0.022001,83325.0,83322.0,0.016001]
[1744454422833,0.022001,83325.0,83322.0,0.012001]
[1744454423213,0.01,83325.0,83323.0,0.003]
[1744454423411,0.01,83325.0,83322.0,0.252032]
[1744454423635,0.012,83327.0,83323.0,0.25203]
[1744454423834,0.26202,83327.0,83323.0,0.012001]
[1744454424398,0.02237181,83326.0,83323.0,0.012001]
[1744454424557,0.03237181,83326.0,83323.0,0.012001]
[1744454425249,0.262023,83326.0,83323.0,0.012001]
[1744454425675,0.262023,83326.0,83323.0,0.015001]
[1744454426150,0.262023,83326.0,83323.0,0.012001]
[1744454426632,0.262023,83326.0,83323.0,0.015001]
[1744454427028,0.022001,83326.0,83323.0,0.255029]
[1744454427205,0.022001,83326.0,83323.0,0.015001]
[1744454427612,0.262024,83326.0,83323.0,0.003]
[1744454428228,0.240026,83325.0,83323.0,0.003]
[1744454428527,0.250026,83325.0,83323.0,0.003]
[1744454428739,0.00159502,83324.0,83323.0,0.003]
[1744454428929,0.01159502,83324.0,83323.0,0.003]
[1744454429312,0.012002,83319.0,83315.0,0.012002]
[1744454429632,0.009002,83318.0,83315.0,0.012002]
[1744454430180,0.006002,83318.0,83315.0,0.012002]
[1744454430594,0.006002,83318.0,83315.0,0.018002]
[1744454431134,0.240047,83317.0,83315.0,0.008]
[1744454431336,0.420047,83317.0,83315.0,0.008]
[1744454431832,0.420047,83317.0,83315.0,0.006]
[1744454432032,0.240058,83313.0,83312.0,0.5]
[1744454432340,0.233058,83313.0,83312.0,0.5]
[1744454433339,0.23311975,83313.0,83312.0,0.501]
[1744454433570,0.40311975,83313.0,83312.0,0.501]
[1744454435225,0.40311975,83313.0,83312.0,0.5]
[1744454435454,0.40411975,83313.0,83312.0,0.5]
[1744454435603,0.23411975,83313.0,83312.0,0.5]
[1744454438128,0.00106175,83313.0,83312.0,0.5]
[1744454448004,0.00106175,83313.0,83312.0,0.740061]
[1744454449653,0.00106175,83313.0,83312.0,0.86090254]
[1744454451338,0.00106175,83313.0,83312.0,0.36090254]
[1744454461730,0.02346668,83313.0,83312.0,0.36090254]
[1744454462520,0.02346668,83313.0,83312.0,0.12084154]
[1744454462914,0.012003,83311.0,83306.0,0.2525011]
[1744454463184,0.27552668,83313.0,83309.0,0.012003]
[1744454463356,0.012003,83311.0,83307.0,0.13284454]
[1744454463534,0.012003,83310.0,83307.0,0.12084154]
[1744454463736,0.252072,83310.0,83307.0,0.12084154]
[1744454464066,0.02240493,83309.0,83307.0,0.36091554]
[1744454464404,0.012003,83310.0,83307.0,0.37291854]
[1744454464818,6.175e-05,83313.0,83311.0,0.240062]
[1744454465352,6.175e-05,83313.0,83310.0,0.252068]
[1744454465575,6.175e-05,83313.0,83312.0,0.240061]
[1744454465775,6.175e-05,83313.0,83310.0,0.252883]
[1744454467186,0.01206375,83313.0,83310.0,0.012818]
[1744454468220,0.01306375,83313.0,83310.0,0.252885]
[1744454468428,0.00106175,83313.0,83311.0,0.240061]
[1744454468726,6.175e-05,83313.0,83311.0,0.000815]
[1744454469066,0.240061,83312.0,83311.0,0.000815]
[1744454475373,0.40165602,83312.0,83311.0,0.000815]
[1744454475603,0.400061,83312.0,83311.0,0.000815]
[1744454477125,0.402061,83312.0,83311.0,0.000815]
[1744454478252,0.405061,83312.0,83311.0,0.001815]
[1744454490729,0.42742982,83312.0,83311.0,0.001815]
[1744454492088,0.42742987,83312.0,83311.0,0.001815]
[1744454493340,0.43581727,83312.0,83311.0,0.001815]
[1744454493573,0.50704895,83312.0,83311.0,0.001815]
[1744454494171,0.50504895,83312.0,83311.0,0.001815]
[1744454494377,0.337675,83307.0,83306.0,0.0004221]
[1744454494619,0.517675,83307.0,83306.0,0.0004221]
[1744454494827,0.54004387,83307.0,83306.0,0.0004221]
[1744454495605,0.54604387,83307.0,83306.0,0.0004221]
[1744454496748,0.45644387,83307.0,83306.0,0.0004221]
[1744454496893,0.46044387,83307.0,83306.0,0.0004221]
[1744454497422,0.45644387,83307.0,83306.0,0.0004221]
[1744454497605,0.46144387,83307.0,83306.0,0.0004221]
[1744454511733,0.46983079,83307.0,83306.0,0.0004221]
[1744454512692,0.46144387,83307.0,83306.0,0.0004221]
[1744454514794,0.46983294,83307.0,83306.0,0.0004221]
[1744454515413,0.51943294,83307.0,83306.0,0.0004221]
[1744454515755,0.53061962,83307.0,83306.0,0.0004221]
[1744454519438,0.51943294,83307.0,83306.0,0.0004221]
[1744454520056,0.51104387,83307.0,83306.0,0.0004221]
[1744454531044,0.46144387,83307.0,83306.0,0.0004221]
[1744454534232,0.50684387,83307.0,83306.0,0.0004221]
[1744454537039,0.51523677,83307.0,83306.0,0.0004221]
[1744454537244,0.5264273,83307.0,83306.0,0.0004221]
[1744454547117,0.4810273,83307.0,83306.0,0.0004221]
[1744454557575,0.45865843,83307.0,83306.0,0.0004221]
[1744454557780,0.48104531,83307.0,83306.0,0.0004221]
[1744454569336,0.24097031,83307.0,83306.0,0.0476221]
[1744454569972,0.22197031,83307.0,83306.0,0.0476221]
[1744454570118,0.21357741,83307.0,83306.0,0.0476221]
[1744454570363,0.20119053,83307.0,83306.0,0.0476221]
[1744454571472,0.20119053,83307.0,83306.0,0.0957221]
[1744454572498,0.10119053,83307.0,83306.0,0.0957221]
[1744454572832,0.09,83307.0,83306.0,0.0957221]
[1744454581959,0.08,83307.0,83306.0,0.0957221]
[1744454589865,0.08,83307.0,83306.0,0.0004221]
[1744454595814,0.320075,83307.0,83306.0,0.0004221]
[1744454597558,0.34246086,83307.0,83306.0,0.0004221]
[1744454600803,0.35365783,83307.0,83306.0,0.0004221]
[1744454603016,0.34246086,83307.0,83306.0,0.0004221]
[1744454606421,0.35365805,83307.0,83306.0,0.0004221]
[1744454609156,0.36205556,83307.0,83306.0,0.0004221]
[1744454625766,0.12198056,83307.0,83306.0,0.0004221]
[1744454625938,0.11517807,83307.0,83306.0,0.0004221]
[1744454626139,0.11358305,83307.0,83306.0,0.0004221]
[1744454628590,0.11517807,83307.0,83306.0,0.0004221]
[1744454629642,0.1235708,83307.0,83306.0,0.0004221]
[1744454631337,0.11237361,83307.0,83306.0,0.0004221]
[1744454633721,0.1235627,83307.0,83306.0,0.0004221]
[1744454640339,0.11237361,83307.0,83306.0,0.0004221]
[1744454641974,0.12356264,83307.0,83306.0,0.0004221]
[1744454645051,0.10837361,83307.0,83306.0,0.0004221]
[1744454645251,0.10737361,83307.0,83306.0,0.0004221]
[1744454645821,0.11537361,83307.0,83306.0,0.0004221]
[1744454648899,0.12656122,83307.0,83306.0,0.0004221]
[1744454660403,0.10417536,83307.0,83306.0,0.0004221]
[1744454662146,0.09298775,83307.0,83306.0,0.0004221]
[1744454664170,0.26082929,83307.0,83306.0,1e-07]
[1744454664471,0.39527427,83307.0,83306.0,1e-07]